[Event "November 21 Early 2023"]
[Site "https://www.chess.com"]
[Date "2023.11.21"]
[Round "10"]
[White "Vakhlamov, Igor L."]
[Black "Vestby-Ellingsen, Mads"]
[Result "1-0"]
[Board "35"]
[TimeControl "180+1"]
[WhiteFideId "24126748"]
[BlackFideId "1520857"]
[WhiteElo "2407"]
[BlackElo "2241"]
[WhiteTeam "RUS"]
[BlackTeam "NOR"]
[WhiteClock "0:00:07"]
[BlackClock "0:00:21"]

1. e4 {[%clk 0:02:50]}  e5 {[%clk 0:02:55]} 2. Nf3 {[%clk 0:02:49]}  d5 {[%clk 0:02:53]} 3. exd5 {[%clk 0:02:47]}  e4 {[%clk 0:02:53]} 4. Qe2 {[%clk 0:02:47]}  Nf6 {[%clk 0:02:53]} 5. Nc3 {[%clk 0:02:46]}  Be7 {[%clk 0:02:53]} 6. Nxe4 {[%clk 0:02:46]}  O-O {[%clk 0:02:54]} 7. Nxf6+ {[%clk 0:02:40]}  Bxf6 {[%clk 0:02:54]} 8. d4 {[%clk 0:02:40]}  Qxd5 {[%clk 0:02:48]} 9. Be3 {[%clk 0:02:40]}  Nc6 {[%clk 0:02:47]} 10. c3 {[%clk 0:02:36]}  Bg4 {[%clk 0:02:42]} 11. h3 {[%clk 0:02:35]}  Bh5 {[%clk 0:02:41]} 12. g4 {[%clk 0:01:32]}  Bg6 {[%clk 0:02:39]} 13. Bg2 {[%clk 0:01:33]}  Rfe8 {[%clk 0:02:33]} 14. O-O {[%clk 0:01:32]}  Qd6 {[%clk 0:02:13]} 15. Nd2 {[%clk 0:01:26]}  Rad8 {[%clk 0:01:48]} 16. Rfe1 {[%clk 0:01:26]}  h6 {[%clk 0:01:38]} 17. Qb5 {[%clk 0:01:19]}  Rb8 {[%clk 0:01:18]} 18. Nc4 {[%clk 0:01:18]}  Qd7 {[%clk 0:01:15]} 19. d5 {[%clk 0:01:10]}  Ne5 {[%clk 0:01:15]} 20. Qxd7 {[%clk 0:01:11]}  Nxd7 {[%clk 0:01:15]} 21. Bxa7 {[%clk 0:01:11]}  Rxe1+ {[%clk 0:01:13]} 22. Rxe1 {[%clk 0:01:12]}  Ra8 {[%clk 0:01:13]} 23. Be3 {[%clk 0:01:08]}  Rxa2 {[%clk 0:01:12]} 24. d6 {[%clk 0:01:09]}  cxd6 {[%clk 0:01:09]} 25. Bxb7 {[%clk 0:01:05]}  Bd3 {[%clk 0:01:05]} 26. Nxd6 {[%clk 0:00:59]}  Rxb2 {[%clk 0:01:03]} 27. Bd5 {[%clk 0:00:59]}  Bxc3 {[%clk 0:00:54]} 28. Rc1 {[%clk 0:00:59]}  Rb1 {[%clk 0:00:49]} 29. Nxf7 {[%clk 0:00:55]}  Rxc1+ {[%clk 0:00:47]} 30. Bxc1 {[%clk 0:00:56]}  Kh7 {[%clk 0:00:41]} 31. Nd6 {[%clk 0:00:54]}  Be5 {[%clk 0:00:37]} 32. Nc4 {[%clk 0:00:53]}  Bc7 {[%clk 0:00:33]} 33. Ne3 {[%clk 0:00:48]}  Nf6 {[%clk 0:00:33]} 34. Be6 {[%clk 0:00:47]}  Bf4 {[%clk 0:00:30]} 35. Bb2 {[%clk 0:00:45]}  Kg6 {[%clk 0:00:25]} 36. Nf5 {[%clk 0:00:44]}  h5 {[%clk 0:00:19]} 37. Ne7+ {[%clk 0:00:27]}  Kh6 {[%clk 0:00:18]} 38. Kg2 {[%clk 0:00:25]}  hxg4 {[%clk 0:00:17]} 39. hxg4 {[%clk 0:00:26]}  Be4+ {[%clk 0:00:12]} 40. f3 {[%clk 0:00:25]}  Bb7 {[%clk 0:00:12]} 41. Nf5+ {[%clk 0:00:22]}  Kg6 {[%clk 0:00:11]} 42. Bc3 {[%clk 0:00:22]}  Nxg4 {[%clk 0:00:10]} 43. Ne7+ {[%clk 0:00:16]}  Kg5 {[%clk 0:00:04]} 44. Bxg4 {[%clk 0:00:16]}  Bd6 {[%clk 0:00:02]} 45. Nf5 {[%clk 0:00:14]}  Bf8 {[%clk 0:00:02]} 46. Nxg7 {[%clk 0:00:14]}  Kg6 {[%clk 0:00:01]} 47. Ne6 {[%clk 0:00:14]}  Bd6 {[%clk 0:00:02]} 48. Bd2 {[%clk 0:00:09]}  Kf7 {[%clk 0:00:01]} 49. Ng5+ {[%clk 0:00:09]}  Kg6 {[%clk 0:00:01]} 50. Ne4 {[%clk 0:00:09]}  Be5 {[%clk 0:00:01]} 51. Nc5 {[%clk 0:00:09]}  Bc6 {[%clk 0:00:01]} 52. Nd3 {[%clk 0:00:09]}  Bd6 {[%clk 0:00:02]} 53. Bc3 {[%clk 0:00:09]}  Ba4 {[%clk 0:00:01]} 54. Kf2 {[%clk 0:00:09]}  Bc6 {[%clk 0:00:01]} 55. Ke3 {[%clk 0:00:09]}  Bb5 {[%clk 0:00:02]} 56. Bd4 {[%clk 0:00:07]}  Ba4 {[%clk 0:00:01]} 57. Ne5+ {[%clk 0:00:06]}  Kg5 {[%clk 0:00:02]} 58. Nf7+ {[%clk 0:00:06]}  Kg6 {[%clk 0:00:01]} 59. Nxd6 {[%clk 0:00:07]}  Bd1 {[%clk 0:00:02]} 60. Ne4 {[%clk 0:00:06]}  Kh7 {[%clk 0:00:01]} 61. Kf4 {[%clk 0:00:05]}  Kg6 {[%clk 0:00:02]} 62. Bf5+ {[%clk 0:00:05]}  Kf7 {[%clk 0:00:02]} 63. Ng5+ {[%clk 0:00:05]}  Ke7 {[%clk 0:00:03]} 64. Bc5+ {[%clk 0:00:05]}  Ke8 {[%clk 0:00:02]} 65. Bg6+ {[%clk 0:00:05]}  Kd7 {[%clk 0:00:03]} 66. Be3 {[%clk 0:00:05]}  Kd6 {[%clk 0:00:03]} 67. Kg3 {[%clk 0:00:04]}  Bxf3 {[%clk 0:00:02]} 68. Kxf3 {[%clk 0:00:04]}  Kd5 {[%clk 0:00:03]} 69. Be4+ {[%clk 0:00:04]}  Kc4 {[%clk 0:00:03]} 70. Kf4 {[%clk 0:00:04]}  Kc3 {[%clk 0:00:04]} 71. Ke5 {[%clk 0:00:04]}  Kc4 {[%clk 0:00:05]} 72. Bd5+ {[%clk 0:00:03]}  Kc3 {[%clk 0:00:06]} 73. Bd4+ {[%clk 0:00:04]}  Kd3 {[%clk 0:00:06]} 74. Ne6 {[%clk 0:00:04]}  Kc2 {[%clk 0:00:07]} 75. Bc4 {[%clk 0:00:04]}  Kd2 {[%clk 0:00:08]} 76. Ke4 {[%clk 0:00:04]}  Kc2 {[%clk 0:00:09]} 77. Bb5 {[%clk 0:00:03]}  Kd2 {[%clk 0:00:10]} 78. Bd3 {[%clk 0:00:03]}  Kc1 {[%clk 0:00:10]} 79. Bc3 {[%clk 0:00:03]}  Kd1 {[%clk 0:00:11]} 80. Kd4 {[%clk 0:00:03]}  Kc1 {[%clk 0:00:12]} 81. Nc7 {[%clk 0:00:03]}  Kd1 {[%clk 0:00:13]} 82. Nd5 {[%clk 0:00:04]}  Kc1 {[%clk 0:00:14]} 83. Nb6 {[%clk 0:00:05]}  Kd1 {[%clk 0:00:14]} 84. Ke3 {[%clk 0:00:05]}  Kc1 {[%clk 0:00:15]} 85. Be2 {[%clk 0:00:05]}  Kc2 {[%clk 0:00:16]} 86. Kd4 {[%clk 0:00:05]}  Kb3 {[%clk 0:00:16]} 87. Nd5 {[%clk 0:00:05]}  Kc2 {[%clk 0:00:17]} 88. Kc4 {[%clk 0:00:05]}  Kc1 {[%clk 0:00:18]} 89. Kb3 {[%clk 0:00:05]}  Kb1 {[%clk 0:00:19]} 90. Bd2 {[%clk 0:00:05]}  Ka1 {[%clk 0:00:19]} 91. Nb4 {[%clk 0:00:05]}  Kb1 {[%clk 0:00:20]} 92. Bd3+ {[%clk 0:00:06]}  Ka1 {[%clk 0:00:21]} 93. Bc3# {[%clk 0:00:07]} 1-0

[Event "November 21 Early 2023"]
[Site "https://www.chess.com"]
[Date "2023.11.21"]
[Round "10"]
[White "luckyswitchback"]
[Black "Saravana, Krishnan P."]
[Result "0-1"]
[Board "37"]
[TimeControl "180+1"]
[BlackFideId "5018382"]
[WhiteElo "2826"]
[BlackElo "2167"]
[BlackTeam "IND"]
[WhiteClock "0:00:21"]
[BlackClock "0:00:10"]

1. e4 {[%clk 0:03:00]}  c6 {[%clk 0:02:59]} 2. d4 {[%clk 0:03:01]}  d5 {[%clk 0:02:59]} 3. e5 {[%clk 0:03:01]}  Qb6 {[%clk 0:02:58]} 4. Nf3 {[%clk 0:02:59]}  Bg4 {[%clk 0:02:57]} 5. Be2 {[%clk 0:02:51]}  e6 {[%clk 0:02:54]} 6. O-O {[%clk 0:02:50]}  Nd7 {[%clk 0:02:49]} 7. Be3 {[%clk 0:02:40]}  Qxb2 {[%clk 0:02:46]} 8. Nbd2 {[%clk 0:02:40]}  Qb6 {[%clk 0:02:46]} 9. c4 {[%clk 0:02:39]}  Ne7 {[%clk 0:02:44]} 10. Rb1 {[%clk 0:02:37]}  Qc7 {[%clk 0:02:44]} 11. h3 {[%clk 0:02:32]}  Bf5 {[%clk 0:02:42]} 12. Rb3 {[%clk 0:02:19]}  dxc4 {[%clk 0:02:41]} 13. Bxc4 {[%clk 0:02:09]}  Nb6 {[%clk 0:02:40]} 14. Nh4 {[%clk 0:02:04]}  Bg6 {[%clk 0:02:34]} 15. Bg5 {[%clk 0:01:56]}  Ned5 {[%clk 0:02:32]} 16. Nxg6 {[%clk 0:01:46]}  hxg6 {[%clk 0:02:32]} 17. Bxd5 {[%clk 0:01:29]}  Nxd5 {[%clk 0:02:25]} 18. Ne4 {[%clk 0:01:30]}  a5 {[%clk 0:02:16]} 19. Qb1 {[%clk 0:01:28]}  Rb8 {[%clk 0:02:11]} 20. Rc1 {[%clk 0:01:24]}  a4 {[%clk 0:02:09]} 21. Rf3 {[%clk 0:01:24]}  b5 {[%clk 0:01:51]} 22. Qc2 {[%clk 0:01:23]}  Rc8 {[%clk 0:01:47]} 23. Nc3 {[%clk 0:01:16]}  Nb4 {[%clk 0:01:15]} 24. Nxb5 {[%clk 0:00:55]}  Qd7 {[%clk 0:01:02]} 25. Qc4 {[%clk 0:00:52]}  Rb8 {[%clk 0:00:38]} 26. Nc3 {[%clk 0:00:40]}  Be7 {[%clk 0:00:29]} 27. Ne4 {[%clk 0:00:36]}  Bxg5 {[%clk 0:00:21]} 28. Nxg5 {[%clk 0:00:33]}  Nd5 {[%clk 0:00:13]} 29. Nxf7 {[%clk 0:00:29]}  O-O {[%clk 0:00:12]} 30. Ng5 {[%clk 0:00:21]}  Qe7 {[%clk 0:00:12]} 31. Rxf8+ {[%clk 0:00:17]}  Rxf8 {[%clk 0:00:12]} 32. Ne4 {[%clk 0:00:18]}  Qa3 {[%clk 0:00:11]} 33. Qxc6 {[%clk 0:00:17]}  Nf4 {[%clk 0:00:11]} 34. Ng3 {[%clk 0:00:16]}  Qxa2 {[%clk 0:00:09]} 35. Qe4 {[%clk 0:00:14]}  Qd5 {[%clk 0:00:08]} 36. Qc2 {[%clk 0:00:14]}  a3 {[%clk 0:00:08]} 37. Ne4 {[%clk 0:00:13]}  a2 {[%clk 0:00:07]} 38. f3 {[%clk 0:00:11]}  Qxd4+ {[%clk 0:00:07]} 39. Kh2 {[%clk 0:00:12]}  a1=Q {[%clk 0:00:08]} 40. Rxa1 {[%clk 0:00:12]}  Qxa1 {[%clk 0:00:08]} 41. Qc5 {[%clk 0:00:13]}  Nd3 {[%clk 0:00:07]} 42. Qd6 {[%clk 0:00:12]}  Qxe5+ {[%clk 0:00:07]} 43. Qxe5 {[%clk 0:00:12]}  Nxe5 {[%clk 0:00:08]} 44. Kg3 {[%clk 0:00:13]}  Nf7 {[%clk 0:00:08]} 45. Nf2 {[%clk 0:00:14]}  Rc8 {[%clk 0:00:09]} 46. Kh2 {[%clk 0:00:15]}  Ra8 {[%clk 0:00:09]} 47. Ng4 {[%clk 0:00:16]}  Ra5 {[%clk 0:00:09]} 48. Ne3 {[%clk 0:00:16]}  Kf8 {[%clk 0:00:10]} 49. Kg3 {[%clk 0:00:16]}  Rd5 {[%clk 0:00:10]} 50. Nf1 {[%clk 0:00:17]}  Ke7 {[%clk 0:00:10]} 51. Nh2 {[%clk 0:00:18]}  Kd6 {[%clk 0:00:10]} 52. Kf2 {[%clk 0:00:19]}  Nh6 {[%clk 0:00:10]} 53. Kg3 {[%clk 0:00:20]}  Rd2 {[%clk 0:00:10]} 54. h4 {[%clk 0:00:19]}  Nf5+ {[%clk 0:00:10]} 55. Kh3 {[%clk 0:00:20]}  Nxh4 {[%clk 0:00:10]} 56. Kxh4 {[%clk 0:00:20]}  Rxg2 {[%clk 0:00:10]} 57. Ng4 {[%clk 0:00:20]}  Rxg4+ {[%clk 0:00:09]} 58. Kxg4 {[%clk 0:00:21]}  Ke5 {[%clk 0:00:09]} 59. Kg5 {[%clk 0:00:22]}  Kd4 {[%clk 0:00:08]} 60. Kg4 {[%clk 0:00:20]}  Ke3 {[%clk 0:00:08]} 61. Kg3 {[%clk 0:00:21]}  e5 {[%clk 0:00:08]} 62. Kg4 {[%clk 0:00:21]}  Kf2 {[%clk 0:00:08]} 63. f4 {[%clk 0:00:21]}  e4 {[%clk 0:00:08]} 64. Kg5 {[%clk 0:00:22]}  e3 {[%clk 0:00:09]} 65. Kxg6 {[%clk 0:00:23]}  e2 {[%clk 0:00:09]} 66. Kxg7 {[%clk 0:00:23]}  e1=Q {[%clk 0:00:10]} 67. f5 {[%clk 0:00:24]}  Qe7+ {[%clk 0:00:10]} 68. Kg6 {[%clk 0:00:21]}  Qf8 {[%clk 0:00:10]} 0-1

[Event "November 21 Early 2023"]
[Site "https://www.chess.com"]
[Date "2023.11.21"]
[Round "10"]
[White "aghasiyevkamal"]
[Black "Alexandre, Anne Shopie Elizabeth"]
[Result "0-1"]
[Board "38"]
[TimeControl "180+1"]
[BlackFideId "11902418"]
[WhiteElo "2565"]
[BlackElo "2820"]
[BlackTeam "HAI"]
[WhiteClock "0:00:06"]
[BlackClock "0:00:15"]

1. e4 {[%clk 0:03:00]}  c5 {[%clk 0:03:00]} 2. Nf3 {[%clk 0:02:58]}  d6 {[%clk 0:03:00]} 3. Bb5+ {[%clk 0:02:57]}  Nd7 {[%clk 0:03:00]} 4. a4 {[%clk 0:02:56]}  Nf6 {[%clk 0:02:59]} 5. Nc3 {[%clk 0:02:53]}  a6 {[%clk 0:02:59]} 6. Be2 {[%clk 0:02:46]}  g6 {[%clk 0:02:59]} 7. O-O {[%clk 0:02:45]}  Bg7 {[%clk 0:02:59]} 8. a5 {[%clk 0:02:38]}  O-O {[%clk 0:02:59]} 9. d4 {[%clk 0:02:34]}  cxd4 {[%clk 0:02:59]} 10. Nxd4 {[%clk 0:02:34]}  Ne5 {[%clk 0:02:56]} 11. h3 {[%clk 0:02:30]}  Bd7 {[%clk 0:02:55]} 12. f4 {[%clk 0:02:15]}  Nc6 {[%clk 0:02:55]} 13. Nxc6 {[%clk 0:02:01]}  Bxc6 {[%clk 0:02:55]} 14. Bf3 {[%clk 0:02:00]}  Nd7 {[%clk 0:02:49]} 15. Be3 {[%clk 0:01:58]}  Rc8 {[%clk 0:02:47]} 16. Qd2 {[%clk 0:01:48]}  Nc5 {[%clk 0:02:45]} 17. Bd4 {[%clk 0:01:41]}  e5 {[%clk 0:02:31]} 18. Be3 {[%clk 0:01:29]}  exf4 {[%clk 0:02:28]} 19. Bxf4 {[%clk 0:01:28]}  Ne6 {[%clk 0:02:25]} 20. Be3 {[%clk 0:01:19]}  Be5 {[%clk 0:02:14]} 21. Nd5 {[%clk 0:01:08]}  Bxb2 {[%clk 0:02:04]} 22. Bb6 {[%clk 0:00:50]}  Qh4 {[%clk 0:01:58]} 23. Bf2 {[%clk 0:00:50]}  Qd8 {[%clk 0:01:56]} 24. Bb6 {[%clk 0:00:49]}  Qh4 {[%clk 0:01:13]} 25. Bf2 {[%clk 0:00:46]}  Qg5 {[%clk 0:01:08]} 26. Be3 {[%clk 0:00:43]}  Qe5 {[%clk 0:01:04]} 27. Ne7+ {[%clk 0:00:36]}  Kg7 {[%clk 0:01:01]} 28. Nxc8 {[%clk 0:00:29]}  Bxa1 {[%clk 0:00:59]} 29. Bh6+ {[%clk 0:00:27]}  Kg8 {[%clk 0:00:54]} 30. Ne7+ {[%clk 0:00:25]}  Kh8 {[%clk 0:00:54]} 31. Nxc6 {[%clk 0:00:25]}  bxc6 {[%clk 0:00:52]} 32. Bxf8 {[%clk 0:00:25]}  Nxf8 {[%clk 0:00:53]} 33. Qb4 {[%clk 0:00:19]}  Bd4+ {[%clk 0:00:46]} 34. Kh1 {[%clk 0:00:18]}  Ne6 {[%clk 0:00:42]} 35. Rd1 {[%clk 0:00:16]}  c5 {[%clk 0:00:39]} 36. Qb8+ {[%clk 0:00:16]}  Kg7 {[%clk 0:00:39]} 37. Bg4 {[%clk 0:00:15]}  Ng5 {[%clk 0:00:38]} 38. c3 {[%clk 0:00:15]}  Nxe4 {[%clk 0:00:19]} 39. cxd4 {[%clk 0:00:15]}  Nf2+ {[%clk 0:00:20]} 40. Kg1 {[%clk 0:00:15]}  Qe3 {[%clk 0:00:21]} 41. Kf1 {[%clk 0:00:08]}  Ne4 {[%clk 0:00:16]} 42. Qb2 {[%clk 0:00:06]}  Ng3# {[%clk 0:00:15]} 0-1

[Event "November 21 Early 2023"]
[Site "https://www.chess.com"]
[Date "2023.11.21"]
[Round "10"]
[White "Vignesh N R"]
[Black "Do Nascimento,Christian Almeida"]
[Result "1-0"]
[Board "39"]
[TimeControl "180+1"]
[WhiteFideId "25012215"]
[BlackFideId "2143801"]
[WhiteElo "2425"]
[BlackElo "2118"]
[WhiteTeam "IND"]
[BlackTeam "BRA"]
[WhiteClock "0:02:40"]
[BlackClock "0:02:45"]

1. Nf3 {[%clk 0:03:00]}  Nf6 {[%clk 0:02:55]} 2. g3 {[%clk 0:02:59]}  g6 {[%clk 0:02:53]} 3. c4 {[%clk 0:02:58]}  Bg7 {[%clk 0:02:53]} 4. d4 {[%clk 0:02:56]}  O-O {[%clk 0:02:53]} 5. Bg2 {[%clk 0:02:57]}  c5 {[%clk 0:02:52]} 6. d5 {[%clk 0:02:54]}  d6 {[%clk 0:02:52]} 7. Nc3 {[%clk 0:02:54]}  Na6 {[%clk 0:02:52]} 8. O-O {[%clk 0:02:53]}  Nc7 {[%clk 0:02:53]} 9. e4 {[%clk 0:02:49]}  a6 {[%clk 0:02:52]} 10. e5 {[%clk 0:02:42]}  dxe5 {[%clk 0:02:48]} 11. Nxe5 {[%clk 0:02:43]}  Rb8 {[%clk 0:02:48]} 12. Re1 {[%clk 0:02:40]}  b5 {[%clk 0:02:45]} 13. Nc6 {[%clk 0:02:40]} 1-0

[Event "November 21 Early 2023"]
[Site "https://www.chess.com"]
[Date "2023.11.21"]
[Round "10"]
[White "Mazurkiewicz, Michal"]
[Black "Nagy, Gabor"]
[Result "1-0"]
[Board "40"]
[TimeControl "180+1"]
[WhiteFideId "1124943"]
[BlackFideId "737119"]
[WhiteElo "2124"]
[BlackElo "2505"]
[WhiteTeam "POL"]
[BlackTeam "HUN"]
[WhiteClock "0:00:08"]
[BlackClock "0:00:59"]

1. e4 {[%clk 0:03:00]}  e5 {[%clk 0:02:53]} 2. Nf3 {[%clk 0:03:00]}  d6 {[%clk 0:02:54]} 3. d4 {[%clk 0:02:55]}  exd4 {[%clk 0:02:54]} 4. Nxd4 {[%clk 0:02:55]}  Nf6 {[%clk 0:02:53]} 5. Nc3 {[%clk 0:02:56]}  Be7 {[%clk 0:02:49]} 6. g3 {[%clk 0:02:53]}  O-O {[%clk 0:02:47]} 7. Bg2 {[%clk 0:02:53]}  c6 {[%clk 0:02:47]} 8. O-O {[%clk 0:02:53]}  Re8 {[%clk 0:02:48]} 9. h3 {[%clk 0:02:51]}  Bf8 {[%clk 0:02:42]} 10. g4 {[%clk 0:02:47]}  Na6 {[%clk 0:02:41]} 11. g5 {[%clk 0:02:44]}  Nd7 {[%clk 0:02:40]} 12. f4 {[%clk 0:02:44]}  Ndc5 {[%clk 0:02:35]} 13. Be3 {[%clk 0:02:37]}  d5 {[%clk 0:02:30]} 14. e5 {[%clk 0:02:33]}  Nc7 {[%clk 0:02:28]} 15. Bf2 {[%clk 0:02:21]}  a5 {[%clk 0:02:21]} 16. Bg3 {[%clk 0:02:14]}  N5e6 {[%clk 0:02:11]} 17. Nxe6 {[%clk 0:01:28]}  Nxe6 {[%clk 0:02:11]} 18. h4 {[%clk 0:01:20]}  g6 {[%clk 0:02:09]} 19. h5 {[%clk 0:01:11]}  Ng7 {[%clk 0:02:08]} 20. h6 {[%clk 0:01:05]}  Nf5 {[%clk 0:02:07]} 21. Bf2 {[%clk 0:01:05]}  b5 {[%clk 0:02:04]} 22. Qd3 {[%clk 0:00:37]}  b4 {[%clk 0:02:03]} 23. Ne2 {[%clk 0:00:28]}  Ba6 {[%clk 0:02:03]} 24. Qd2 {[%clk 0:00:28]}  Bxe2 {[%clk 0:02:00]} 25. Qxe2 {[%clk 0:00:28]}  a4 {[%clk 0:01:59]} 26. Rad1 {[%clk 0:00:25]}  b3 {[%clk 0:01:57]} 27. axb3 {[%clk 0:00:23]}  axb3 {[%clk 0:01:57]} 28. c4 {[%clk 0:00:23]}  d4 {[%clk 0:01:35]} 29. Bxc6 {[%clk 0:00:23]}  Ra2 {[%clk 0:01:36]} 30. Bd5 {[%clk 0:00:16]}  Ba3 {[%clk 0:01:31]} 31. e6 {[%clk 0:00:15]}  fxe6 {[%clk 0:01:30]} 32. Bxe6+ {[%clk 0:00:15]}  Kf8 {[%clk 0:01:30]} 33. Qe5 {[%clk 0:00:15]}  Bxb2 {[%clk 0:01:08]} 34. Rfe1 {[%clk 0:00:12]}  d3 {[%clk 0:01:06]} 35. Bc5+ {[%clk 0:00:12]}  Re7 {[%clk 0:01:05]} 36. Bxe7+ {[%clk 0:00:12]}  Qxe7 {[%clk 0:01:06]} 37. Qb8+ {[%clk 0:00:12]}  Qe8 {[%clk 0:01:06]} 38. Qxe8+ {[%clk 0:00:12]}  Kxe8 {[%clk 0:01:07]} 39. Bxf5+ {[%clk 0:00:13]}  Kf8 {[%clk 0:01:07]} 40. Bxd3 {[%clk 0:00:13]}  Bc3 {[%clk 0:01:08]} 41. Re2 {[%clk 0:00:13]}  b2 {[%clk 0:01:08]} 42. Bb1 {[%clk 0:00:12]}  Ra4 {[%clk 0:01:07]} 43. Rd8+ {[%clk 0:00:10]}  Kf7 {[%clk 0:01:07]} 44. Rd7+ {[%clk 0:00:10]}  Kf8 {[%clk 0:01:08]} 45. Rd1 {[%clk 0:00:08]}  Rxc4 {[%clk 0:01:08]} 46. Rc2 {[%clk 0:00:09]}  Ke7 {[%clk 0:01:03]} 47. Kg2 {[%clk 0:00:09]}  Ke6 {[%clk 0:01:03]} 48. Rd3 {[%clk 0:00:09]}  Rxf4 {[%clk 0:01:00]} 49. Rcxc3 {[%clk 0:00:07]}  Kf5 {[%clk 0:01:00]} 50. Rf3+ {[%clk 0:00:08]}  Kxg5 {[%clk 0:00:59]} 51. Rxf4 {[%clk 0:00:08]} 1-0

[Event "November 21 Early 2023"]
[Site "https://www.chess.com"]
[Date "2023.11.21"]
[Round "10"]
[White "Starozhilov, Leonid"]
[Black "Galchenko, Matvey"]
[Result "0-1"]
[Board "41"]
[TimeControl "180+1"]
[WhiteFideId "14106752"]
[BlackFideId "24175480"]
[WhiteElo "2270"]
[BlackElo "2406"]
[WhiteTeam "UKR"]
[BlackTeam "FID"]
[WhiteClock "0:00:02"]
[BlackClock "0:00:04"]

1. e4 {[%clk 0:03:00]}  e6 {[%clk 0:02:59]} 2. d3 {[%clk 0:03:00]}  d5 {[%clk 0:03:00]} 3. Nf3 {[%clk 0:03:00]}  Nf6 {[%clk 0:03:00]} 4. Nbd2 {[%clk 0:02:59]}  c5 {[%clk 0:03:01]} 5. c3 {[%clk 0:02:59]}  Nc6 {[%clk 0:03:01]} 6. a3 {[%clk 0:02:59]}  Be7 {[%clk 0:03:01]} 7. b4 {[%clk 0:02:56]}  b6 {[%clk 0:02:38]} 8. e5 {[%clk 0:02:49]}  Nd7 {[%clk 0:02:37]} 9. d4 {[%clk 0:02:49]}  O-O {[%clk 0:02:31]} 10. Bd3 {[%clk 0:02:45]}  f6 {[%clk 0:02:30]} 11. b5 {[%clk 0:02:28]}  Na5 {[%clk 0:02:28]} 12. O-O {[%clk 0:02:28]}  fxe5 {[%clk 0:02:24]} 13. Nxe5 {[%clk 0:02:23]}  Nxe5 {[%clk 0:02:23]} 14. dxe5 {[%clk 0:02:23]}  c4 {[%clk 0:02:17]} 15. Bc2 {[%clk 0:02:20]}  d4 {[%clk 0:02:18]} 16. Be4 {[%clk 0:01:58]}  Bb7 {[%clk 0:02:14]} 17. Qg4 {[%clk 0:01:34]}  dxc3 {[%clk 0:01:40]} 18. Bxb7 {[%clk 0:01:21]}  cxd2 {[%clk 0:01:36]} 19. Bxa8 {[%clk 0:01:07]}  dxc1=Q {[%clk 0:01:33]} 20. Qxe6+ {[%clk 0:01:03]}  Rf7 {[%clk 0:01:26]} 21. Raxc1 {[%clk 0:00:52]}  Qxa8 {[%clk 0:01:25]} 22. Rcd1 {[%clk 0:00:35]}  Nb3 {[%clk 0:00:42]} 23. Qxc4 {[%clk 0:00:32]}  Nc5 {[%clk 0:00:41]} 24. Rd4 {[%clk 0:00:28]}  Qe8 {[%clk 0:00:25]} 25. Rfd1 {[%clk 0:00:26]}  Kh8 {[%clk 0:00:20]} 26. f4 {[%clk 0:00:25]}  g6 {[%clk 0:00:18]} 27. g3 {[%clk 0:00:23]}  Kg7 {[%clk 0:00:19]} 28. a4 {[%clk 0:00:22]}  Qc8 {[%clk 0:00:19]} 29. Qc3 {[%clk 0:00:18]}  Qe6 {[%clk 0:00:13]} 30. Qc4 {[%clk 0:00:15]}  Qf5 {[%clk 0:00:09]} 31. Qc3 {[%clk 0:00:09]}  Ne6 {[%clk 0:00:10]} 32. Rc4 {[%clk 0:00:03]}  g5 {[%clk 0:00:10]} 33. Qd3 {[%clk 0:00:04]}  Qh3 {[%clk 0:00:07]} 34. Qf1 {[%clk 0:00:03]}  Qg4 {[%clk 0:00:03]} 35. Re1 {[%clk 0:00:02]}  Bc5+ {[%clk 0:00:03]} 36. Kg2 {[%clk 0:00:02]}  gxf4 {[%clk 0:00:03]} 37. Ree4 {[%clk 0:00:02]}  f3+ {[%clk 0:00:03]} 38. Kh1 {[%clk 0:00:02]}  Qf5 {[%clk 0:00:02]} 39. Rg4+ {[%clk 0:00:03]}  Kh8 {[%clk 0:00:02]} 40. Rce4 {[%clk 0:00:03]}  Rf8 {[%clk 0:00:02]} 41. Rh4 {[%clk 0:00:02]}  f2 {[%clk 0:00:03]} 42. Kg2 {[%clk 0:00:01]}  Qf3+ {[%clk 0:00:03]} 43. Kh3 {[%clk 0:00:02]}  Ng5# {[%clk 0:00:04]} 0-1